bitfinex/quotes_BTCUSD_20240815
["timestamp","ask_amount","ask_price","bid_price","bid_amount"]
[1723738348465,0.34554327,59714.0,59696.0,0.092]
[1723738348678,0.34554327,59714.0,59698.0,0.092]
[1723738348679,0.51466362,59708.0,59698.0,0.092]
[1723738348898,0.51466362,59708.0,59705.0,0.334976]
[1723738349106,0.01747668,59711.0,59710.0,0.338576]
[1723738349308,0.000827,59712.0,59710.0,0.1711]
[1723738349510,0.000827,59712.0,59711.0,0.167473]
[1723738349718,0.000827,59712.0,59710.0,0.338574]
[1723738349919,0.000827,59712.0,59711.0,0.502419]
[1723738350557,0.000827,59712.0,59711.0,0.837365]
[1723738350963,0.000827,59712.0,59711.0,1.172311]
[1723738351175,0.000827,59712.0,59711.0,0.837365]
[1723738351990,0.003827,59712.0,59711.0,0.837365]
[1723738352195,0.006827,59712.0,59711.0,0.837365]
[1723738352604,0.006827,59712.0,59711.0,0.86129228]
[1723738352999,0.006827,59712.0,59711.0,1.36779282]
[1723738353204,0.006827,59712.0,59711.0,1.03284682]
[1723738353493,0.006827,59712.0,59711.0,1.36779282]
[1723738354424,0.006827,59712.0,59711.0,1.03284682]
[1723738354554,0.006827,59712.0,59711.0,1.36779282]
[1723738354761,0.006827,59712.0,59711.0,1.03284682]
[1723738354970,0.006827,59712.0,59711.0,1.36779282]
[1723738356143,0.006827,59712.0,59711.0,1.03284682]
[1723738357111,0.006827,59712.0,59711.0,1.36779282]
[1723738357315,0.006827,59712.0,59711.0,1.03284682]
[1723738361606,0.006827,59712.0,59711.0,1.36779282]
[1723738361808,0.006827,59712.0,59711.0,1.13144682]
[1723738362223,0.006827,59712.0,59711.0,1.46639282]
[1723738362397,0.003827,59712.0,59711.0,1.46639282]
[1723738362870,0.004827,59712.0,59711.0,1.46939282]
[1723738363275,0.001827,59712.0,59711.0,1.46939282]
[1723738363669,0.002827,59712.0,59711.0,1.47139282]
[1723738365000,0.002827,59712.0,59711.0,0.62994628]
[1723738365600,0.002827,59712.0,59711.0,0.29500028]
[1723738365800,0.002827,59712.0,59711.0,0.02892728]
[1723738365801,0.344497,59712.0,59711.0,0.02892728]
[1723738366055,0.91003224,59712.0,59711.0,0.02592728]
[1723738366270,0.1005,59711.0,59692.0,0.1009]
[1723738366585,0.2329,59697.0,59693.0,0.02029073]
[1723738366724,0.23243569,59697.0,59693.0,0.02029073]
[1723738366925,0.23243569,59697.0,59692.0,0.1009]
[1723738366926,0.023,59696.0,59692.0,0.1009]
[1723738367332,0.023,59696.0,59687.0,0.0939]
[1723738367553,0.023,59696.0,59693.0,0.02029073]
[1723738367812,0.023,59696.0,59687.0,0.0939]
[1723738367813,0.023,59696.0,59692.0,0.167524]
[1723738368016,0.07529467,59696.0,59694.0,0.02028056]
[1723738368150,0.033,59696.0,59693.0,0.02029073]
[1723738368356,0.033,59696.0,59688.0,0.335072]
[1723738368357,0.200515,59696.0,59695.0,0.02027039]
[1723738368547,0.200515,59696.0,59691.0,0.167528]
[1723738368746,0.033,59696.0,59693.0,0.167523]
[1723738368999,0.033,59696.0,59694.0,0.16752]
[1723738369247,0.038,59696.0,59694.0,0.02028056]
[1723738369447,0.028,59696.0,59694.0,0.02028056]
[1723738370080,0.167518,59695.0,59694.0,0.02028056]
[1723738370324,0.023,59695.0,59687.0,0.0939]
[1723738370522,0.025,59696.0,59693.0,0.167522]
[1723738370650,0.025,59696.0,59694.0,0.02028056]
[1723738370856,0.027,59696.0,59693.0,0.167522]
[1723738371233,0.06316643,59696.0,59694.0,0.02028056]
[1723738371427,0.06116643,59696.0,59694.0,0.02028056]
[1723738371857,0.023,59696.0,59694.0,0.02028056]
[1723738372047,0.025,59696.0,59694.0,0.02028056]
[1723738372259,0.025,59696.0,59693.0,0.167523]
[1723738372388,0.025,59696.0,59695.0,0.02027039]
[1723738372813,0.027,59696.0,59693.0,0.167522]
[1723738373009,0.027,59696.0,59695.0,0.02027039]
[1723738373214,0.025,59696.0,59693.0,0.167522]
[1723738373420,0.023,59696.0,59695.0,0.02027039]
[1723738373621,0.025,59696.0,59694.0,0.02028056]
[1723738373920,0.002,59696.0,59695.0,0.62432439]
[1723738374123,0.10573629,59708.0,59700.0,0.335003]
[1723738374322,0.10573629,59708.0,59696.0,0.0776]
[1723738374323,0.43863629,59708.0,59696.0,0.0776]
[1723738374548,0.43863629,59708.0,59695.0,0.62432439]
[1723738374549,0.002,59696.0,59695.0,0.62432439]
[1723738374755,0.002,59696.0,59695.0,0.93909]
[1723738374940,0.004,59696.0,59695.0,0.93909]
[1723738375255,0.002,59696.0,59695.0,0.93909]
[1723738375855,0.2329,59702.0,59699.0,0.167504]
[1723738376597,0.2329,59702.0,59700.0,0.167504]
[1723738377335,0.2329,59702.0,59701.0,0.02020938]
[1723738377543,0.3399,59702.0,59701.0,0.02020938]
[1723738377744,0.3399,59702.0,59699.0,0.167506]
[1723738377947,0.3399,59702.0,59701.0,0.02020938]
[1723738378154,0.3399,59702.0,59701.0,0.18771038]
[1723738378355,0.3469,59702.0,59701.0,0.18771038]
[1723738378845,0.3399,59702.0,59701.0,0.02020938]
[1723738379047,0.507398,59702.0,59701.0,0.02020938]
[1723738379224,0.3399,59702.0,59695.0,0.436536]
[1723738379464,0.3399,59702.0,59701.0,0.02020938]
[1723738379638,0.3399,59702.0,59698.0,0.167509]
[1723738379844,0.3399,59702.0,59701.0,0.02020938]
[1723738380044,0.3469,59702.0,59700.0,0.167503]
[1723738380242,0.3469,59702.0,59701.0,0.18771038]
[1723738380479,0.2469,59702.0,59701.0,0.18771038]
[1723738380656,0.2399,59702.0,59701.0,0.02020938]
[1723738380859,0.2469,59702.0,59701.0,0.18771038]
[1723738381062,0.2469,59702.0,59701.0,0.02020938]
[1723738381637,0.2399,59702.0,59701.0,0.02020938]
[1723738381840,0.2469,59702.0,59701.0,0.167501]
[1723738382043,0.2399,59702.0,59701.0,0.18771038]
[1723738382218,0.2329,59702.0,59701.0,0.02020938]
[1723738382422,0.2469,59702.0,59701.0,0.18771038]
[1723738382636,0.2469,59702.0,59701.0,0.502503]
[1723738383045,0.2469,59702.0,59701.0,0.18771038]
[1723738383298,0.2469,59702.0,59701.0,0.52271238]
[1723738383545,0.014,59702.0,59701.0,0.52271238]
[1723738384547,0.014,59702.0,59701.0,0.85771438]
[1723738384777,0.014,59702.0,59701.0,0.95081438]
[1723738386449,0.014,59702.0,59701.0,1.28581638]
[1723738386663,0.014,59702.0,59701.0,1.36411638]
[1723738386878,0.014,59702.0,59701.0,1.53567092]
[1723738387081,0.014,59702.0,59701.0,1.87067292]
[1723738387329,0.014827,59702.0,59701.0,1.87067292]
[1723738388455,0.007827,59702.0,59701.0,1.87067292]
[1723738388719,0.008827,59702.0,59701.0,1.88043199]
[1723738388980,0.008827,59702.0,59701.0,1.88343199]
[1723738389214,0.000827,59702.0,59701.0,2.21543399]
[1723738389706,0.002827,59702.0,59701.0,2.22043399]
[1723738389908,0.000827,59712.0,59711.0,1.172311]
[1723738390117,0.000827,59712.0,59711.0,1.51656554]
[1723738391590,0.000827,59712.0,59711.0,1.53667326]
[1723738391994,0.002827,59712.0,59711.0,1.54367326]
[1723738394783,0.002827,59712.0,59711.0,1.87861926]
[1723738395707,0.002827,59712.0,59711.0,1.88873217]
[1723738396839,0.002827,59712.0,59711.0,1.86862445]
[1723738400548,0.002827,59712.0,59711.0,1.88873217]
[1723738406949,0.002827,59712.0,59711.0,1.55378617]
[1723738413218,0.002827,59712.0,59711.0,1.70916479]
[1723738414759,0.002827,59712.0,59711.0,2.04411079]
[1723738415539,0.002827,59712.0,59711.0,1.88873217]
[1723738424238,0.002827,59712.0,59711.0,1.93877206]
[1723738424842,0.002827,59712.0,59711.0,1.76607206]
[1723738425478,0.002827,59712.0,59711.0,1.71603217]
[1723738426029,0.002827,59712.0,59711.0,1.76614286]
[1723738426240,0.002827,59712.0,59711.0,1.71603217]
[1723738426439,0.002827,59712.0,59711.0,1.38108617]
[1723738426802,0.002827,59712.0,59711.0,1.43119777]
[1723738427233,0.002827,59712.0,59711.0,1.45614601]
[1723738428374,0.002827,59712.0,59711.0,1.75238227]
[1723738429264,0.002827,59712.0,59711.0,1.82760732]
[1723738430221,0.002827,59712.0,59711.0,1.82761176]
[1723738430398,0.002827,59712.0,59711.0,1.85268682]
[1723738431407,0.002827,59712.0,59711.0,1.87776187]
[1723738431764,0.002827,59712.0,59711.0,2.30450787]
[1723738432165,0.002827,59712.0,59711.0,1.84418659]
[1723738432971,0.002827,59712.0,59711.0,1.75238659]
[1723738434032,0.002827,59712.0,59711.0,1.87797129]
[1723738434233,0.002827,59712.0,59711.0,1.75238659]
[1723738438244,0.002827,59712.0,59711.0,1.84848659]
[1723738440528,0.002827,59712.0,59711.0,1.92398659]
[1723738440726,0.002827,59712.0,59711.0,2.40966634]
[1723738442245,0.001827,59712.0,59711.0,2.40666634]
[1723738442451,0.000827,59712.0,59711.0,2.40266634]
[1723738442659,0.001827,59712.0,59711.0,2.40866634]
[1723738442868,0.002827,59712.0,59711.0,2.41766634]
[1723738444295,0.002827,59712.0,59711.0,2.26692506]
[1723738444494,0.002827,59712.0,59711.0,2.41766107]
[1723738445779,0.002827,59712.0,59711.0,2.26692506]
[1723738446051,0.002827,59712.0,59711.0,2.26691936]
[1723738446170,0.002827,59712.0,59711.0,2.41765586]
[1723738450464,0.002827,59712.0,59711.0,1.89563217]
[1723738450680,0.002827,59712.0,59711.0,2.41765318]
[1723738453481,0.002827,59712.0,59711.0,2.08270718]
[1723738453842,0.002827,59712.0,59711.0,2.08270816]
[1723738454064,0.002827,59712.0,59711.0,2.41765416]
[1723738455230,0.002827,59712.0,59711.0,2.41765794]
[1723738456569,0.002827,59712.0,59711.0,2.26692177]
[1723738456774,0.002827,59712.0,59711.0,2.26892177]
[1723738460718,0.0783,59725.0,59724.0,0.837182]
[1723738460897,0.0783,59725.0,59724.0,0.88742818]
[1723738461143,0.0783,59725.0,59724.0,0.85890393]
[1723738461346,0.1731,59735.0,59729.0,0.334845]
[1723738461576,0.1731,59735.0,59734.0,0.502225]
[1723738461778,0.1731,59735.0,59734.0,1.00859654]
[1723738462371,0.2662,59735.0,59734.0,1.00859654]
[1723738462994,0.2662,59735.0,59733.0,0.334818]
[1723738462995,0.2662,59735.0,59733.0,0.16741]
[1723738463197,0.1731,59733.0,59732.0,0.167413]
[1723738463401,0.1704,59733.0,59732.0,0.167413]
[1723738463600,0.1704,59733.0,59732.0,0.502241]
[1723738463748,0.2647,59733.0,59732.0,0.502241]
[1723738464153,0.1716,59733.0,59732.0,0.502241]
[1723738464496,0.2647,59733.0,59732.0,0.502241]
[1723738464725,0.2647,59733.0,59732.0,0.52388166]
[1723738464726,0.1716,59733.0,59732.0,0.52388166]
[1723738464860,0.2647,59733.0,59732.0,0.85870966]
[1723738465848,0.2647,59733.0,59732.0,0.86570966]
[1723738466052,0.2647,59733.0,59732.0,0.86270966]
[1723738466481,0.2647,59733.0,59732.0,0.86670966]
[1723738466943,0.1716,59733.0,59732.0,0.86670966]
[1723738467146,0.2647,59733.0,59732.0,0.86670966]
[1723738468200,0.2647,59733.0,59732.0,1.3730922]
[1723738468201,0.0931,59733.0,59732.0,1.3730922]
[1723738468372,0.000827,59736.0,59735.0,0.83703]
[1723738468761,0.000827,59736.0,59735.0,0.85864019]
[1723738469691,0.000827,59736.0,59735.0,0.86064019]
[1723738469899,0.000827,59736.0,59735.0,0.52582819]
[1723738470717,0.000827,59736.0,59735.0,0.02361019]
[1723738470915,0.095027,59736.0,59735.0,0.02361019]
[1723738471176,0.095027,59736.0,59735.0,0.19101619]
[1723738471385,0.095027,59736.0,59735.0,0.002]
[1723738471568,0.095027,59736.0,59735.0,0.19101619]
[1723738471756,0.095027,59736.0,59735.0,0.02361019]
[1723738471950,0.095027,59736.0,59735.0,0.19101619]
[1723738472639,0.095027,59736.0,59735.0,0.02361019]
[1723738473416,0.095027,59736.0,59735.0,0.19101619]
[1723738473819,0.095027,59736.0,59735.0,0.02361019]
[1723738474827,0.26243,59736.0,59735.0,0.02361019]
[1723738475142,1.035142,59736.0,59735.0,0.02361019]
[1723738475452,1.035142,59736.0,59735.0,0.002]
[1723738475612,0.700336,59736.0,59735.0,0.002]
[1723738476418,1.28798699,59736.0,59735.0,0.002]
[1723738476776,1.28798699,59736.0,59718.0,0.7787]
[1723738476777,0.343839,59723.0,59718.0,0.7787]
[1723738476974,0.771818,59723.0,59718.0,0.7787]
[1723738477205,0.771818,59723.0,59722.0,0.49654225]
[1723738477361,0.771818,59723.0,59722.0,0.4748]
[1723738477539,0.436939,59723.0,59722.0,0.49654225]
[1723738477739,0.771818,59723.0,59722.0,0.49654225]
[1723738478429,0.436939,59723.0,59722.0,0.49654225]
[1723738478637,0.771818,59723.0,59722.0,0.49654225]
[1723738479013,0.436939,59723.0,59722.0,0.49654225]
[1723738479214,0.772818,59723.0,59722.0,0.49654225]
[1723738479577,0.437939,59723.0,59722.0,0.02174225]
[1723738479779,0.772818,59723.0,59722.0,0.02174225]
[1723738480007,0.167443,59722.0,59718.0,0.167453]
[1723738480363,0.0931,59719.0,59718.0,0.167453]
[1723738482808,0.0931,59719.0,59718.0,0.171453]
[1723738483013,0.0931,59719.0,59718.0,0.175453]
[1723738483409,0.0931,59719.0,59718.0,0.19723589]
[1723738484310,1.102052,59719.0,59718.0,0.02978289]
[1723738484977,1.459953,59719.0,59718.0,0.02978289]
[1723738485208,1.459953,59719.0,59718.0,0.02578289]
[1723738485209,1.87619965,59719.0,59718.0,0.02578289]
[1723738485339,1.87619965,59719.0,59712.0,0.0011113]
[1723738485340,1.461953,59719.0,59712.0,0.0011113]
[1723738485562,1.027637,59713.0,59712.0,0.0011113]
[1723738485992,1.050637,59713.0,59712.0,0.0011113]
[1723738487402,1.050637,59713.0,59712.0,0.0021113]
[1723738487403,1.057637,59713.0,59712.0,0.0021113]
[1723738487930,1.064637,59713.0,59712.0,0.0031113]
[1723738488339,1.473372,59713.0,59712.0,0.0031113]
[1723738488720,0.667486,59703.0,59702.0,0.0009097]
[1723738488925,0.332495,59703.0,59702.0,0.0009097]
[1723738489126,0.783586,59703.0,59702.0,0.0009097]
[1723738489377,0.448595,59703.0,59702.0,0.0009097]
[1723738489582,0.425595,59703.0,59702.0,0.0009097]
[1723738490096,0.427595,59703.0,59702.0,0.02285522]
[1723738490300,0.762586,59703.0,59702.0,0.02285522]
[1723738490442,0.762586,59703.0,59702.0,0.0009097]
[1723738490843,1.097577,59703.0,59702.0,0.0009097]
[1723738491085,1.230334,59703.0,59702.0,0.0009097]
[1723738491271,1.121577,59703.0,59702.0,0.0009097]
[1723738494668,0.358495,59703.0,59702.0,0.0009097]
[1723738495092,0.786586,59703.0,59702.0,0.02285522]
[1723738495297,0.451595,59703.0,59702.0,0.02285522]
[1723738496464,1.19015016,59703.0,59702.0,0.02285522]
[1723738496663,1.52514116,59703.0,59702.0,0.02285522]
[1723738496868,1.52514116,59703.0,59702.0,0.0009097]
[1723738497417,1.52414116,59703.0,59702.0,0.0009097]
[1723738497819,1.53214116,59703.0,59702.0,0.0019097]
[1723738498380,1.52414116,59703.0,59702.0,0.0009097]
[1723738498767,1.53314116,59703.0,59702.0,0.0019097]
[1723738498969,1.54325329,59703.0,59702.0,0.0019097]
[1723738499169,1.54325329,59703.0,59702.0,0.0029097]
[1723738499170,1.55525329,59703.0,59702.0,0.0029097]
[1723738499919,1.69535329,59703.0,59702.0,0.0029097]
[1723738500325,2.20189883,59703.0,59702.0,0.0029097]
[1723738500539,2.30189883,59703.0,59702.0,0.0029097]
[1723738500961,2.30189883,59703.0,59695.0,0.0009097]
[1723738500962,1.172605,59696.0,59695.0,0.0009097]
[1723738501180,1.172605,59696.0,59687.0,0.0009097]
[1723738501181,0.167537,59688.0,59687.0,0.0009097]
[1723738501391,1.604562,59688.0,59687.0,0.0009097]
[1723738501590,1.269487,59688.0,59687.0,0.02300777]
[1723738501717,1.269487,59688.0,59687.0,0.0009097]
[1723738501931,0.17155454,59695.0,59687.0,0.0009097]
[1723738501932,0.1756,59695.0,59687.0,0.0009097]
[1723738502134,0.023,59694.0,59689.0,0.167533]
[1723738502360,0.023,59694.0,59688.0,0.335074]
[1723738502361,0.2332,59692.0,59688.0,0.0220879]
[1723738502567,0.014,59696.0,59692.0,0.335052]
[1723738502740,0.014,59696.0,59695.0,0.167518]
[1723738503126,0.014,59696.0,59695.0,0.0220167]
[1723738503326,0.014,59696.0,59690.0,0.0978]
[1723738503327,0.02107241,59696.0,59690.0,0.0978]
[1723738503531,0.2332,59692.0,59690.0,0.265331]
[1723738503771,0.2332,59692.0,59691.0,0.18958639]
[1723738504124,0.2332,59692.0,59691.0,0.52464439]
[1723738504375,0.2332,59692.0,59691.0,0.85970239]
[1723738504580,0.2332,59692.0,59691.0,0.52464439]
[1723738505192,0.2332,59692.0,59691.0,0.02205739]
[1723738505393,0.400726,59692.0,59687.0,0.1684487]
[1723738505593,0.2332,59692.0,59688.0,0.3571589]
[1723738505816,0.2332,59692.0,59689.0,0.167534]
[1723738506238,0.2332,59692.0,59690.0,0.02206756]
[1723738506632,0.2332,59692.0,59691.0,0.02205739]
[1723738507237,0.400726,59692.0,59691.0,0.02205739]
[1723738507882,0.400726,59692.0,59688.0,0.167536]
[1723738508084,0.2332,59692.0,59691.0,0.02205739]
[1723738508296,0.2332,59692.0,59691.0,0.002]
[1723738508885,0.2332,59692.0,59691.0,0.0009097]
[1723738509216,0.2332,59692.0,59691.0,0.02296709]
[1723738509574,0.2332,59692.0,59691.0,0.0009097]
[1723738510124,0.15947727,59697.0,59691.0,0.0019097]
[1723738510125,0.0737,59697.0,59691.0,0.0019097]
[1723738510333,0.2332,59698.0,59692.0,0.0786]
[1723738510579,0.2332,59698.0,59693.0,0.335045]
[1723738510816,0.2332,59698.0,59693.0,0.02203704]
[1723738510817,0.08577727,59694.0,59693.0,0.02203704]
[1723738511019,0.70264027,59694.0,59693.0,0.02203704]
[1723738511231,0.502579,59692.0,59691.0,0.0019097]
[1723738511441,0.400726,59692.0,59691.0,0.0019097]
[1723738511831,0.2332,59692.0,59691.0,0.0019097]
[1723738512144,0.400726,59692.0,59691.0,0.0019097]
[1723738512342,0.2352,59692.0,59691.0,0.02396709]
[1723738512946,0.2352,59692.0,59691.0,0.02296709]
[1723738513181,0.2582,59692.0,59691.0,0.02296709]
[1723738514006,0.2612,59692.0,59691.0,0.02296709]
[1723738516112,0.763779,59692.0,59691.0,0.02296709]
[1723738516353,0.78560106,59692.0,59691.0,0.02296709]
[1723738516562,0.428726,59692.0,59691.0,0.0009097]
[1723738516751,0.2612,59692.0,59691.0,0.0009097]
[1723738516887,0.2612,59692.0,59691.0,0.02296709]
[1723738517126,0.2612,59692.0,59691.0,0.19049609]
[1723738517331,0.2612,59692.0,59691.0,0.02296709]
[1723738517512,0.2382,59692.0,59691.0,0.19049609]
[1723738518297,0.005,59692.0,59691.0,0.60385409]
[1723738518436,0.005,59692.0,59691.0,0.26879609]
[1723738518960,0.005,59692.0,59691.0,0.60385409]
[1723738519579,0.005,59692.0,59691.0,0.26879609]
[1723738519742,0.005,59692.0,59691.0,0.60385409]
[1723738520124,0.0983,59692.0,59691.0,0.60385409]
[1723738520309,0.005,59692.0,59691.0,1.03031209]
[1723738520481,0.0983,59692.0,59691.0,1.03031209]
[1723738522497,0.0983,59692.0,59691.0,1.36537009]
[1723738522903,0.005,59692.0,59691.0,1.36537009]
[1723738523146,0.0983,59692.0,59691.0,1.36537009]
[1723738524365,0.0963,59692.0,59691.0,1.36537009]
[1723738524516,0.003,59692.0,59691.0,1.53692463]
[1723738524722,0.0963,59692.0,59691.0,1.53892463]
[1723738525807,0.0933,59692.0,59691.0,1.53892463]
[1723738526160,0.0933,59692.0,59691.0,1.53992463]
[1723738528979,0.000827,59703.0,59695.0,0.335036]
[1723738529256,0.000827,59703.0,59700.0,0.167503]
[1723738529472,0.0933,59701.0,59696.0,0.35703654]
[1723738529724,0.000827,59703.0,59700.0,0.093]
[1723738530100,0.000827,59703.0,59700.0,0.260503]
[1723738530310,0.000827,59703.0,59698.0,0.335018]
[1723738530511,0.0933,59701.0,59700.0,0.167502]
[1723738530888,0.0933,59701.0,59699.0,0.167506]
[1723738531090,0.0933,59701.0,59700.0,0.167504]
[1723738531818,0.1023,59701.0,59700.0,0.168504]
[1723738532999,0.1123,59701.0,59700.0,0.19046986]
[1723738534020,0.1123,59701.0,59700.0,0.52547786]
[1723738535543,0.1123,59701.0,59700.0,0.86048586]
[1723738536804,0.0933,59701.0,59700.0,0.85948586]
[1723738537213,0.0983,59701.0,59700.0,0.85948586]
[1723738539073,0.005,59701.0,59700.0,1.67474969]
[1723738539274,0.005,59701.0,59700.0,1.76804969]
[1723738539493,0.005,59701.0,59700.0,2.88425708]
[1723738539689,0.005,59701.0,59700.0,2.80943622]
[1723738539893,0.005,59701.0,59700.0,2.93413765]
[1723738540103,0.003,59701.0,59700.0,2.93413765]
[1723738540308,0.003,59701.0,59700.0,2.90913047]
[1723738540526,0.004,59701.0,59700.0,2.92510132]
[1723738540928,0.000827,59703.0,59702.0,2.17948]
[1723738541209,0.16098762,59734.0,59724.0,0.167434]
[1723738541210,0.0933,59725.0,59724.0,0.167434]
[1723738541425,0.0933,59725.0,59721.0,0.334886]
[1723738541629,0.0933,59721.0,59719.0,0.334901]
[1723738541832,0.0724,59724.0,59723.0,0.167439]
[1723738542229,0.0724,59724.0,59723.0,0.502318]
[1723738542456,0.0724,59724.0,59723.0,0.167439]
[1723738542457,0.1657,59724.0,59723.0,0.167439]
[1723738543040,0.0983,59724.0,59723.0,0.167439]
[1723738543266,0.0983,59724.0,59720.0,0.334895]
[1723738543467,0.0983,59724.0,59720.0,0.502343]
[1723738543468,0.0933,59721.0,59720.0,0.502343]
[1723738544146,0.0933,59721.0,59720.0,0.837239]
[1723738544362,0.0933,59721.0,59720.0,0.502343]
[1723738544695,0.0933,59721.0,59720.0,0.837239]
[1723738545234,0.0943,59721.0,59720.0,0.86104099]
[1723738545453,0.001,59721.0,59720.0,0.86104099]
[1723738545803,0.001,59721.0,59720.0,1.36583699]
[1723738546002,0.0943,59721.0,59720.0,1.03094099]
[1723738546432,0.001,59721.0,59720.0,1.03094099]
[1723738546628,0.001,59721.0,59720.0,1.53739153]
[1723738546831,0.001,59721.0,59720.0,1.69113068]
[1723738547034,0.001,59721.0,59720.0,1.53739153]
[1723738551927,0.001,59721.0,59720.0,1.87228753]
[1723738552461,0.001,59721.0,59720.0,2.20918353]
[1723738552661,0.001,59721.0,59720.0,2.31926204]
[1723738553531,0.001,59721.0,59720.0,2.32526204]
[1723738553685,0.001,59721.0,59720.0,1.98836604]
[1723738553887,0.001,59721.0,59720.0,1.98236604]
[1723738554474,0.001,59721.0,59720.0,1.99636604]
[1723738554922,0.001,59721.0,59720.0,2.33126204]
[1723738555123,0.000827,59724.0,59723.0,1.172076]
[1723738555323,0.000827,59724.0,59723.0,1.51273054]
[1723738555542,0.000827,59724.0,59723.0,1.87138105]
[1723738556289,0.000827,59724.0,59723.0,1.87638105]
[1723738556290,0.001827,59724.0,59723.0,1.87638105]
[1723738556642,0.001827,59724.0,59723.0,1.88638105]
[1723738558067,0.001827,59724.0,59723.0,1.88838105]
[1723738558272,0.001827,59724.0,59723.0,1.88638105]
[1723738564441,0.001827,59724.0,59723.0,1.88838105]
[1723738564762,0.001827,59724.0,59723.0,2.43326005]
[1723738565177,0.000826,59735.0,59734.0,1.171859]
[1723738565384,0.000826,59735.0,59734.0,1.54057331]
[1723738566007,0.000826,59735.0,59734.0,1.87539031]
[1723738566228,0.000826,59735.0,59734.0,2.21020731]
[1723738566581,0.001826,59735.0,59734.0,2.24578731]
[1723738566754,0.001826,59735.0,59734.0,2.25552922]
[1723738567380,0.001826,59735.0,59734.0,2.84552922]
[1723738567584,0.000827,59736.0,59735.0,2.047246]
[1723738567785,0.000827,59736.0,59735.0,3.28361254]
[1723738568542,0.000827,59736.0,59735.0,3.29361254]
[1723738568941,0.001827,59736.0,59735.0,3.33220921]
[1723738569142,0.001827,59736.0,59735.0,3.32220921]
[1723738569944,0.001827,59736.0,59735.0,3.33620921]
[1723738571305,0.000827,59740.0,59739.0,2.055719]
[1723738571513,0.000827,59740.0,59739.0,2.22727354]
[1723738571715,0.000827,59740.0,59739.0,2.25182959]
[1723738571863,0.000827,59740.0,59739.0,2.58472959]
[1723738572274,0.00827,59763.0,59750.0,1.506276]
[1723738572440,0.00827,59763.0,59750.0,1.85663054]
[1723738572641,0.00827,59763.0,59750.0,1.88107491]
[1723738573694,0.00827,59763.0,59750.0,1.89707491]
[1723738574072,0.00827,59763.0,59750.0,1.56234691]
[1723738574073,0.08577727,59760.0,59750.0,1.56234691]
[1723738574273,0.1675,59756.0,59750.0,1.38354691]
[1723738574882,0.1675,59759.0,59750.0,1.37554691]
[1723738575291,0.00827,59763.0,59750.0,1.48626786]
[1723738575489,0.00827,59763.0,59750.0,1.56486786]
[1723738575723,0.00827,59763.0,59750.0,1.89959586]
[1723738576146,0.00827,59763.0,59750.0,1.90959586]
[1723738579074,0.08577727,59760.0,59750.0,1.90959586]
[1723738579277,0.1712,59755.0,59750.0,1.05281891]
[1723738579528,0.1712,59755.0,59750.0,0.21180837]
[1723738579529,0.10467,59751.0,59750.0,0.21180837]
[1723738579828,0.10467,59751.0,59750.0,0.04444437]
[1723738580300,0.10467,59751.0,59750.0,0.21180837]
[1723738580506,0.10467,59751.0,59750.0,0.54653637]
[1723738581126,0.10467,59751.0,59750.0,0.88126437]
[1723738581315,0.10467,59751.0,59750.0,1.14094535]
[1723738581316,0.00827,59751.0,59750.0,1.14094535]
[1723738581795,0.00827,59751.0,59750.0,1.38754691]
[1723738583546,0.00827,59751.0,59750.0,1.72227491]
[1723738583824,0.00827,59751.0,59750.0,1.39757542]
[1723738584246,1e-08,59751.0,59750.0,1.39757542]
[1723738586018,1e-08,59751.0,59750.0,0.54653637]
[1723738586192,1e-08,59751.0,59750.0,0.21180837]
[1723738586395,1e-08,59751.0,59750.0,0.54653637]
[1723738586817,1e-08,59751.0,59750.0,1.47666316]
[1723738587590,1e-08,59751.0,59750.0,1.38754691]
[1723738588069,1e-08,59751.0,59750.0,1.72227491]
[1723738588305,1e-08,59751.0,59750.0,1.81597491]
[1723738589392,1e-08,59751.0,59750.0,1.80597491]
[1723738589816,0.00100001,59751.0,59750.0,1.80997491]
[1723738591390,0.00100001,59751.0,59750.0,1.82397491]
[1723738594107,0.00100001,59751.0,59750.0,1.39554691]
[1723738594470,0.00100001,59751.0,59750.0,0.21980837]
[1723738594471,0.17380001,59751.0,59750.0,0.21980837]
[1723738594669,0.17380001,59751.0,59750.0,0.05244437]
[1723738594891,0.17380001,59751.0,59750.0,0.21980837]
[1723738595093,0.17380001,59751.0,59750.0,0.55453637]
[1723738595474,0.17380001,59751.0,59750.0,0.05244437]
[1723738595648,0.17280001,59751.0,59750.0,0.20580837]
[1723738596027,0.17280001,59751.0,59750.0,0.19380837]
[1723738596242,0.17280001,59751.0,59750.0,0.53553637]
[1723738596800,0.17280001,59751.0,59750.0,0.53653637]
[1723738597534,0.17280001,59751.0,59750.0,0.86226437]
[1723738597986,0.17280001,59751.0,59750.0,1.37054691]
[1723738598182,1e-08,59751.0,59750.0,1.37054691]
[1723738599818,1e-08,59751.0,59750.0,1.5076016]
[1723738600175,1e-08,59751.0,59750.0,1.54334691]
[1723738600397,1e-08,59751.0,59750.0,1.88824669]
[1723738600839,1e-08,59751.0,59750.0,2.25855469]
[1723738601080,1e-08,59751.0,59750.0,2.25655469]
[1723738601226,1e-08,59751.0,59750.0,2.81855469]
[1723738601425,0.00827,59761.0,59760.0,1.171352]
[1723738601801,0.00827,59761.0,59760.0,1.5377044]
[1723738601942,0.00827,59761.0,59760.0,1.8723764]
[1723738602313,0.00827,59761.0,59760.0,1.9059564]
[1723738602647,0.00827,59761.0,59760.0,2.2496284]
[1723738603791,0.00827,59761.0,59760.0,2.31516158]
[1723738603949,0.00827,59761.0,59760.0,1.98048958]
[1723738604148,0.00827,59761.0,59760.0,1.9059564]
[1723738604550,0.00827,59761.0,59760.0,1.9149564]
[1723738604766,0.00827,59761.0,59760.0,1.9289564]
[1723738604985,0.00827,59761.0,59760.0,1.93870577]
[1723738605190,0.00827,59761.0,59760.0,1.91570577]
[1723738605610,0.00827,59761.0,59760.0,1.94370577]
[1723738605824,0.00827,59761.0,59760.0,1.97938179]
[1723738606028,0.00827,59761.0,59760.0,1.91570577]
[1723738606222,0.00827,59761.0,59760.0,1.97938179]